Cogmind - Beta 16.1 @@@ ROGUE MODE // 2026.04.15 @ 19:01:31 Player: Elxavo Result: Destroyed by B-75 Beast with Magnetic Acceleration Cannon Performance ------------- Evolutions (3) 1500 Regions Visited (8) 1600 Robots Destroyed (35) 175 Value Destroyed (1135) 1135 Prototype IDs (12) 240 Alien Tech Used (0) 0 Bonus (300) 300 TOTAL SCORE: 4950 Bonus ------- Met Data Miner 300 Cogmind --------- Core Integrity 0/700 Matter 300/300 Energy 100/100 System Corruption 5% Temperature Cool (12) Movement Core (1400) Ox27 Location -6/Proximity Caves Parts ------- > --- POWER (1) -------- (None) > --- PROPULSION (6) --- (None) > --- UTILITY (4) ------ Huge Storage Unit > --- WEAPON (2) ------- Chainsword > --- INVENTORY (25) --- Hybrid Deuterium Engine Carbon-fiber Leg Carbon-fiber Leg Carbon-fiber Leg Improved Heat Sink Seismic Detector Transport Network Coupler 0b10 Decoder Chip [Skirmisher] Hardened Heavy Armor Plating Field Recycling Unit (0) Shock Rifle Improved Datajack Tearclaws Peak State ------------ > --- POWER ------------ Nuclear Core > --- PROPULSION ------- Armored Huge Wheel Armored Huge Wheel Armored Huge Wheel > --- UTILITY ---------- Huge Storage Unit Seismic Detector Makeshift Light Armor Plating V3-11A's Pendant > --- WEAPON ----------- Gauss Cannon Rocket Array > --- INVENTORY -------- Nuclear Core Armored Treads Armored Treads Armored Treads Carbon-fiber Leg Carbon-fiber Leg Carbon-fiber Leg Armored Huge Wheel Gravmag System Gravmag System Gravmag System Gravmag System Compact Matter Pod Seismic Detector Transport Network Coupler Hardened Heavy Armor Plating Reactive Plating Particle Cannon Ion Cannon Gauss Rifle Grenade Launcher Improved Datajack Chainsword [Rating: 52] Favorites ----------- Power Nuclear Core Engine Ion Engine Power Core Nuclear Core Propulsion Armored Huge Wheel Treads Light Treads Leg Aluminum Leg Wheel Armored Huge Wheel Utility Seismic Detector Device Seismic Detector Storage Huge Storage Unit Protection Makeshift Light Armor Plating Weapon Grenade Launcher Energy Cannon Particle Cannon Ballistic Gun Assault Rifle Ballistic Cannon Assault Cannon Launcher Grenade Launcher Slashing Weapon Chainsword Build | -11 -10 -10 -8 -7 -7 -7 -7 -6 ------- Run | Yrd Mat Sub Mat Fac Low Low Dat Pro Slots Evolved 6 | . . . 4 2 . . . . Power . | . . . . . . . . . Propulsion 4 | . . . 2 2 . . . . Utility 2 | . . . 2 . . . . . Weapon . | . . . . . . . . . Parts Attached 35 | 7 . 2 9 3 . 2 . 12 Power 4 | 1 . . 1 . . 1 . 1 Engine 2 | 1 . . . . . . . 1 Core 2 | . . . 1 . . 1 . . Reactor . | . . . . . . . . . Propulsion 12 | 2 . . 4 1 . . . 5 Treads 2 | . . . 2 . . . . . Leg 6 | 2 . . . . . . . 4 Wheel 4 | . . . 2 1 . . . 1 Hover . | . . . . . . . . . Flight . | . . . . . . . . . Utility 9 | 2 . 1 3 . . . . 3 Device 3 | 1 . 1 . . . . . 1 Storage 4 | 1 . . 2 . . . . 1 Processor . | . . . . . . . . . Hackware . | . . . . . . . . . Protection 2 | . . . 1 . . . . 1 Artifact . | . . . . . . . . . Weapon 10 | 2 . 1 1 2 . 1 . 3 Energy Gun . | . . . . . . . . . Energy Cannon 2 | . . . . . . . . 2 Ballistic Gun 3 | 2 . . . . . 1 . . Ballistic Cannon 2 | . . . 1 1 . . . . Launcher 2 | . . 1 . 1 . . . . Special Weapon . | . . . . . . . . . Impact Weapon . | . . . . . . . . . Slashing Weapon 1 | . . . . . . . . 1 Piercing Weapon . | . . . . . . . . . Special Melee Weapon . | . . . . . . . . . Unidentified Prototypes 2 | . . 1 . 1 . . . . Parts Lost 21 | . . . . . . 3 . 18 Power 3 | . . . . . . 1 . 2 Propulsion 8 | . . . . . . . . 8 Utility 6 | . . . . . . . . 6 Weapon 4 | . . . . . . 2 . 2 Highest Loss Streak 9 | . . . . . . 2 . 9 To Critical Strikes . | . . . . . . . . . Average Backups 17 | 4 7 8 18 21 22 20 21 16 Power 1 | . 1 . 1 1 3 2 2 1 Propulsion 6 | 1 2 2 8 8 7 7 7 4 Utility 4 | . 2 2 3 4 6 6 7 6 Weapon 3 | 1 2 3 4 4 5 3 3 1 Tool/Special . | . . . . . . . . . Unused Backups 31 | . 2 2 5 9 . . . 13 Power 3 | . . 1 1 . . . . 1 Propulsion 11 | . 1 . . 7 . . . 3 Utility 9 | . . 1 1 1 . . . 6 Weapon 6 | . 1 . 3 1 . . . 1 Tool/Special 2 | . . . . . . . . 2 Average Slot Usage (%) 81 | . 100 100 85 76 76 76 76 76 Engine 3 | . 14 14 3 . . . . 3 Core 4 | . . . 5 7 7 7 7 3 Leg 8 | . 28 28 4 . . . . 14 Wheel 14 | . . . 13 23 23 23 23 12 Device 14 | . 14 14 17 15 15 15 15 10 Storage 9 | . 14 14 9 7 7 7 7 10 Protection 5 | . . . 9 7 7 7 7 5 Energy Cannon 1 | . . . . . . . . 4 Ballistic Gun 4 | . 28 14 . . . 6 7 3 Ballistic Cannon 3 | . . . 8 7 7 . . . Launcher 6 | . . 14 9 7 7 7 7 2 Peak Build Rating 52 | 7 7 10 39 52 52 52 48 50 Average Rating 37 | 5 7 8 33 50 52 50 48 42 On Entrance 29 | . 7 7 10 39 52 52 48 48 Avg Prop Armor Cover (%) 8 | . . . 8 . . . . 8 Naked Turns . | . . . . . . . . . Heaviest Build 107 | 14 14 16 101 107 107 104 100 103 Greatest Support 84 | 20 20 20 56 84 84 84 84 84 Greatest Overweight (x) 29 | . . . 3 1 1 1 1 29 Average Overweight (x) . | . . . . 1 1 1 1 1 Largest Inventory Capacity 25 | 8 8 8 25 25 25 25 25 25 Average Capacity 21 | 7 8 8 22 25 25 25 25 25 Most Carried 25 | 8 8 8 25 25 24 24 24 25 Average Carried 18 | 4 7 8 20 23 24 23 24 19 Final Capacity 25 | 8 8 8 25 25 25 25 25 25 Final Carried 25 | 8 8 8 25 24 24 24 24 15 Class Distribution -------------------- 100% | Mutant Dominant Class ---------------- Mutant | -10/Materials Mutant | -10/Subcaves Mutant | -8/Materials Mutant | -7/Factory Mutant | -7/Lower Caves Mutant | -7/Lower Caves Mutant | -7/Data Miner Mutant | -6/Proximity Caves Resources | -11 -10 -10 -8 -7 -7 -7 -7 -6 ----------- Run | Yrd Mat Sub Mat Fac Low Low Dat Pro Matter Collected 1342 | 302 . 68 95 43 398 116 . 320 Remotely . | . . . . . . . . . Salvage Created 973 | 148 . 67 75 32 202 46 . 403 Parts 50 | 10 . 11 9 1 9 . . 10 Haulers Intercepted 1 | . . . 1 . . . . . Recyclers Shooed . | . . . . . . . . . Parts Field Recycled . | . . . . . . . . . Retrieved Matter . | . . . . . . . . . Parts Self-Destructed 28 | . . 7 . . 9 . . 12 Prevented . | . . . . . . . . . Parts Restored . | . . . . . . . . . Kills | -11 -10 -10 -8 -7 -7 -7 -7 -6 ------- Run | Yrd Mat Sub Mat Fac Low Low Dat Pro Combat Hostiles Destroyed 30 | . . 6 1 1 11 2 . 9 Melee 4 | . . . . . . . . 4 Guns 5 | . . 3 . . . 1 . 1 Cannons 14 | . . . 1 1 11 . . 1 AOE 7 | . . 3 . . . 1 . 3 Classes Destroyed 13 | 2 . 1 3 1 2 1 . 3 Tunneler 2 | 2 . . . . . . . . Hauler 1 | . . . 1 . . . . . Recycler 1 | 1 . . . . . . . . Watcher 1 | . . . 1 . . . . . Swarmer 14 | . . 6 . . 7 . . 1 Saboteur 1 | . . . . . . . . 1 Grunt 5 | . . . . . 3 . . 2 Brawler 3 | . . . . . . . . 3 Duelist 1 | . . . . . 1 . . . Sentry 3 | . . . . 1 . 1 . 1 Hunter 1 | . . . 1 . . . . . Programmer 1 | . . . . . . . . 1 Behemoth 1 | . . . . . . 1 . . Best Kill Streak 5 | 1 . 5 1 1 4 1 . 5 Combat Bots Only 5 | . . 5 1 1 4 1 . 5 Max Kills in Single Turn 2 | 1 . 2 1 1 1 1 . 1 Gunslinging . | . . . . . . . . . Exploded 1 | . . 1 . . . 1 . 1 Melee 1 | . . . . . . . . 1 Uniques/NPCs Destroyed . | . . . . . . . . . Combat | -11 -10 -10 -8 -7 -7 -7 -7 -6 -------- Run | Yrd Mat Sub Mat Fac Low Low Dat Pro Hostile Shots Fired 333 | . . 16 4 27 66 72 . 148 Missed 111 | . . 5 2 10 23 36 . 35 Hits 222 | . . 11 2 17 43 36 . 113 Melee 10 | . . . . . . . . 10 Projectile 212 | . . 11 2 17 43 36 . 103 Critical Strikes 2 | . . . . . 1 . . 1 Damage Taken 3933 | . . 92 33 142 657 576 . 2433 Core 731 | . . 23 . 11 45 59 . 593 Absorbed by Shields . | . . . . . . . . . Core Remaining (%) 96 | 100 . 90 100 . . . . . Volleys Fired 114 | 13 . 9 11 5 40 15 . 21 Largest 2 | 2 . 2 1 1 1 2 . 2 Hottest 88 | 40 . 50 37 40 40 73 . 88 Shots Fired 146 | 26 . 12 11 5 40 20 . 32 Gun 61 | 26 . 9 . . . 14 . 12 Cannon 70 | . . . 11 5 40 1 . 13 Launcher 15 | . . 3 . . . 5 . 7 Special . | . . . . . . . . . Kinetic 118 | 26 . 9 11 5 40 15 . 12 Thermal 13 | . . . . . . . . 13 Explosive 15 | . . 3 . . . 5 . 7 Electromagnetic . | . . . . . . . . . Robot Hit Streak 16 | 5 . 1 8 13 16 11 . 9 Robot Miss Streak 3 | 2 . 3 1 . 3 2 . 2 Penetration Max 1 | . . . . . 1 . . 1 Secondary Targets . | . . . . . . . . . Shots Hit Robots 122 | 17 . 4 9 5 29 16 . 42 Core Hits 57 | 6 . 6 4 2 10 11 . 18 Critical Kills . | . . . . . . . . . Critical Parts Destroyed . | . . . . . . . . . Critical Strikes 7 | . . . . . 5 . . 2 Blast 5 | . . . . . 5 . . . Sever 2 | . . . . . . . . 2 Melee Attacks 23 | . . . . . . . . 23 Impact . | . . . . . . . . . Slashing 23 | . . . . . . . . 23 Piercing . | . . . . . . . . . Sneak Attacks . | . . . . . . . . . Combat Hostiles . | . . . . . . . . . Follow-up Attacks . | . . . . . . . . . Damage Inflicted 3626 | 153 . 183 197 144 862 800 . 1287 Guns 603 | 153 . 42 . . . 238 . 170 Cannons 1374 | . . . 197 144 862 . . 171 Explosions 988 | . . 141 . . . 562 . 285 Melee 661 | . . . . . . . . 661 Ramming . | . . . . . . . . . Kinetic 1806 | 153 . 42 197 144 862 238 . 170 Thermal 171 | . . . . . . . . 171 Explosive 988 | . . 141 . . . 562 . 285 Electromagnetic . | . . . . . . . . . Impact . | . . . . . . . . . Slashing 661 | . . . . . . . . 661 Piercing . | . . . . . . . . . Highest Corruption 5 | . . . . . . . . 5 Average Corruption 4 | . . . . . . . . 4 Corruption Purged . | . . . . . . . . . Corruption Blocked . | . . . . . . . . . Effects 10 | . . . . . . . . 10 Message Errors 5 | . . . . . . . . 5 Matter Fused 2 | . . . . . . . . 2 Data Loss (minor) 1 | . . . . . . . . 1 Data Loss (major) 2 | . . . . . . . . 2 Overload Shots . | . . . . . . . . . Overflow Damage 62 | . . . . . 27 . . 35 Projectiles 27 | . . . . . 27 . . . Explosions 1 | . . . . . . . . 1 Melee 34 | . . . . . . . . 34 Knockbacks 9 | . . . 1 . 8 . . . Impact . | . . . . . . . . . Kinetic 8 | . . . 1 . 7 . . . Secondary 1 | . . . . . 1 . . . Self-Inflicted Damage 86 | . . . . . . 49 . 37 Shots 4 | . . . . . . 2 . 2 Rammed . | . . . . . . . . . Targets Rammed . | . . . . . . . . . Kicked . | . . . . . . . . . Crushed . | . . . . . . . . . Highest Temperature 93 | . . . . 38 93 18 . 87 Average Temperature 32 | . . . . 23 42 7 . 32 Received Heat Transfer 780 | . . . . 54 180 102 . 444 Siege Activations . | . . . . . . . . . Martial Activations . | . . . . . . . . . Shielding Activations . | . . . . . . . . . Robots Disrupted . | . . . . . . . . . Combat Hostiles . | . . . . . . . . . Robots Corrupted . | . . . . . . . . . Combat Hostiles . | . . . . . . . . . Parts Fried 1 | . . . . . 1 . . . Impact Corruptions 1 | . . . . . 1 . . . Robots Melted . | . . . . . . . . . Combat Hostiles . | . . . . . . . . . Parts Melted . | . . . . . . . . . Heat Transferred 296 | . . . . . . . . 296 Parts Sabotaged 2 | . . . . . . . . 2 Parts Stolen . | . . . . . . . . . Parts Stripped . | . . . . . . . . . Power Chain Reactions . | . . . . . . . . . Alert | -11 -10 -10 -8 -7 -7 -7 -7 -6 ------- Run | Yrd Mat Sub Mat Fac Low Low Dat Pro Maximum Alert Level . | . . . . . . . . . Low Security (%) 100 | 100 100 . 100 100 . . . . Level 1 . | . . . . . . . . . Level 2 . | . . . . . . . . . Level 3 . | . . . . . . . . . Level 4 . | . . . . . . . . . Level 5 . | . . . . . . . . . High Security . | . . . . . . . . . Max Security . | . . . . . . . . . Peak Influence 30 | 5 5 . 30 30 . . . . Initial . | . . . . . . . . . Average 1 | 1 . . 1 2 . . . . Influence Increases 817 | 15 5 155 45 47 265 50 . 235 Destroy 0b10 Robot/C 600 | . . 120 20 20 220 40 . 180 Destroy 0b10 Robot/NC 25 | 15 . . 10 . . . . . Destroy Leader 94 | . . 20 14 10 30 10 . 10 Successful Hack 22 | . 5 . . 17 . . . . Destroy Structure 1 | . . . 1 . . . . . Lose Combat Pursuer 75 | . . 15 . . 15 . . 45 Influence Decreases 817 | 15 5 155 45 47 208 107 . 235 Entered New Map 12 | . . . . . . 12 . . Time Decay 699 | 15 5 150 45 47 208 75 . 154 Lost Part 101 | . . . . . . 20 . 81 Lost Ally 5 | . . 5 . . . . . . Squads Dispatched 3 | . 1 . 1 . . . . 1 Investigation 2 | . 1 . 1 . . . . . Extermination . | . . . . . . . . . Reinforcement . | . . . . . . . . . Assault 1 | . . . . . . . . 1 Garrison . | . . . . . . . . . Intercept . | . . . . . . . . . Searches Triggered . | . . . . . . . . . Construction Impeded . | . . . . . . . . . Haulers Reinforced . | . . . . . . . . . Active Scanning Responses . | . . . . . . . . . Cargo Convoy Interrupts . | . . . . . . . . . Stealth | -11 -10 -10 -8 -7 -7 -7 -7 -6 --------- Run | Yrd Mat Sub Mat Fac Low Low Dat Pro Distress Signals . | . . . . . . . . . Communications Jammed . | . . . . . . . . . Distress Signals . | . . . . . . . . . Times Spotted 42 | . . 7 2 1 12 2 . 18 Peak Tracking Total 5 | . . 3 1 1 4 1 . 5 Tactical Retreats 5 | . . 1 . . 1 . . 3 Traps | -11 -10 -10 -8 -7 -7 -7 -7 -6 ------- Run | Yrd Mat Sub Mat Fac Low Low Dat Pro Traps Triggered 2 | . 1 . 1 . . . . . Indirectly . | . . . . . . . . . Trap Hack Attempts . | . . . . . . . . . Triggered . | . . . . . . . . . Disarmed . | . . . . . . . . . Reprogrammed . | . . . . . . . . . Reused . | . . . . . . . . . Traps Extracted . | . . . . . . . . . Installed . | . . . . . . . . . Triggered . | . . . . . . . . . Machines | -11 -10 -10 -8 -7 -7 -7 -7 -6 ---------- Run | Yrd Mat Sub Mat Fac Low Low Dat Pro Machines Disabled . | . . . . . . . . . Max in Single Turn . | . . . . . . . . . Machines Repaired . | . . . . . . . . . Machines Dismantled . | . . . . . . . . . Machines Sabotaged . | . . . . . . . . . Overloaded Fab Kills . | . . . . . . . . . Hacking | -11 -10 -10 -8 -7 -7 -7 -7 -6 --------- Run | Yrd Mat Sub Mat Fac Low Low Dat Pro Machines Accessed 11 | . 1 . 3 3 . . 4 . Terminals 4 | . 1 . 1 2 . . . . Fabricators . | . . . . . . . . . Repair Stations . | . . . . . . . . . Recycling Units 1 | . . . 1 . . . . . Scanalyzers 2 | . . . 1 1 . . . . Garrison Access . | . . . . . . . . . Total Hacks 48 | . 3 . 7 10 . . 28 . Successful 37 | . 1 . 5 3 . . 28 . Failed 10 | . 2 . 2 6 . . . . Catastrophic 1 | . . . . 1 . . . . Database Lockouts 1 | . . . . 1 . . . . Manual . | . . . . . . . . . Terminals 13 | . 3 . 3 7 . . . . Fabricators . | . . . . . . . . . Repair Stations . | . . . . . . . . . Recycling Units 1 | . . . 1 . . . . . Scanalyzers 6 | . . . 3 3 . . . . Garrison Access . | . . . . . . . . . Terminal Hacks 32 | . 1 . 1 2 . . 28 . Record 11 | . . . . . . . 11 . Part Schematic 8 | . . . . . . . 8 . Robot Schematic 6 | . . . . . . . 6 . Prototype ID Bank 3 | . . . . . . . 3 . Locate Traps 1 | . . . . 1 . . . . Hauler Manifests 2 | . . . 1 1 . . . . Zone Layout 1 | . 1 . . . . . . . Fabricator Hacks . | . . . . . . . . . Repair Station Hacks . | . . . . . . . . . Recycling Unit Hacks 1 | . . . 1 . . . . . Retrieve Matter 1 | . . . 1 . . . . . Scanalyzer 4 | . . . 3 1 . . . . Retrieve Study 4 | . . . 3 1 . . . . Garrison Access Hacks . | . . . . . . . . . Unauthorized Hacks . | . . . . . . . . . Terminals . | . . . . . . . . . Fabricators . | . . . . . . . . . Repair Stations . | . . . . . . . . . Recycling Units . | . . . . . . . . . Scanalyzers . | . . . . . . . . . Garrison Access . | . . . . . . . . . Data Cores Recovered . | . . . . . . . . . Used . | . . . . . . . . . Hacking Detections 6 | . 1 . 2 3 . . . . Full Trace Events . | . . . . . . . . . Feedback Events . | . . . . . . . . . Feedback Blocked . | . . . . . . . . . Robot Schematics Acquired 6 | . . . . . . . 6 . Robots Built . | . . . . . . . . . Authchips . | . . . . . . . . . Time . | . . . . . . . . . Total Robot Build Rating . | . . . . . . . . . Part Schematics Acquired 8 | . . . . . . . 8 . Parts Built . | . . . . . . . . . Authchips . | . . . . . . . . . Time . | . . . . . . . . . Total Part Build Rating . | . . . . . . . . . Part Studies Acquired 3 | . . . 2 1 . . . . Parts Repaired . | . . . . . . . . . Time . | . . . . . . . . . Parts Recycled . | . . . . . . . . . Recycled Matter . | . . . . . . . . . Retrieved Matter 98 | . . . 98 . . . . . Retrieved Components . | . . . . . . . . . Parts Scanalyzed . | . . . . . . . . . Part Schematics Acquired . | . . . . . . . . . Parts Damaged . | . . . . . . . . . Bothacking | -11 -10 -10 -8 -7 -7 -7 -7 -6 ------------ Run | Yrd Mat Sub Mat Fac Low Low Dat Pro Used RIF Installer . | . . . . . . . . . Robots Hacked . | . . . . . . . . . Non-combat . | . . . . . . . . . Combat . | . . . . . . . . . Robot Hacks Applied . | . . . . . . . . . Relay Couplers Released . | . . . . . . . . . Fabnet Peak Effective % . | . . . . . . . . . Robots Rewired . | . . . . . . . . . Allies Hacked . | . . . . . . . . . Hacks Repelled . | . . . . . . . . . Allies | -11 -10 -10 -8 -7 -7 -7 -7 -6 -------- Run | Yrd Mat Sub Mat Fac Low Low Dat Pro Total Allies 2 | . . 1 . . . . . 1 Largest Group 1 | . . 1 . . . . . 1 Highest-Rated Group 96 | . . 19 . . . . . 96 Highest-Rated Ally 96 | . . 19 . . . . . 96 Total Orders . | . . . . . . . . . Ally Attacks 6 | . . 2 . . . . . 4 Total Damage 305 | . . 42 . . . . . 263 Kills . | . . . . . . . . . Allies Corrupted . | . . . . . . . . . Allies Melted . | . . . . . . . . . Intel | -11 -10 -10 -8 -7 -7 -7 -7 -6 ------- Run | Yrd Mat Sub Mat Fac Low Low Dat Pro Active Infowar (turns) 3676 | 40 315 136 933 581 609 336 105 621 Seismic 3676 | 40 315 136 933 581 609 336 105 621 Robot Analysis Total . | . . . . . . . . . Derelict Logs Recovered 7 | . . 3 . . . 1 . 3 Drone Launches . | . . . . . . . . . Drone Recoveries . | . . . . . . . . . Exploration | -11 -10 -10 -8 -7 -7 -7 -7 -6 ------------- Run | Yrd Mat Sub Mat Fac Low Low Dat Pro Turns Passed 4470 | 120 315 410 934 581 609 336 105 1060 Spaces Moved 2555 | 59 102 298 373 421 370 254 92 586 Core 8 | 7 . . . . . . . 1 Treads 75 | . . . 75 . . . . . Legs 666 | 52 102 298 . . . . . 214 Wheels 1806 | . . . 298 421 370 254 92 371 Hover . | . . . . . . . . . Flight . | . . . . . . . . . Fastest Speed 50 | 50 120 120 115 115 115 115 115 115 Average Speed 124 | 111 120 120 133 115 115 115 115 142 Slowest Speed 1500 | 120 120 120 320 115 115 115 115 1500 Overloaded Moves . | . . . . . . . . . Propulsion Burnouts . | . . . . . . . . . Robots Hopped . | . . . . . . . . . Potential Cave-ins . | . . . . . . . . . Cave-ins Triggered . | . . . . . . . . . Exploration Rate (%) 34 | 5 10 17 25 11 55 46 74 71 Regions Visited 8 Branch Regions 5 Pre-discovered Areas 2 | . . . . . . . 1 1 Known Exits Taken 1 | . . . 1 . . . . . Unknown Exits Taken 7 | 1 1 1 . 1 1 1 1 . Scrap Searched 4 | . . . . . . 2 . 2 Spaces Dug . | . . . . . . . . . Terrain Destroyed 100 | . . 13 1 . 9 42 . 35 Melee . | . . . . . . . . . Projectile 14 | . . . 1 . 9 1 . 3 AOE 86 | . . 13 . . . 41 . 32 Terrain Rammed . | . . . . . . . . . Walls Destroyed . | . . . . . . . . . Machines Disabled . | . . . . . . . . . Actions | -11 -10 -10 -8 -7 -7 -7 -7 -6 --------- Run | Yrd Mat Sub Mat Fac Low Low Dat Pro Total 3669 | 86 295 338 802 518 513 273 91 753 Wait 859 | . 190 26 363 69 104 . . 107 Move 2547 | 58 101 297 372 420 369 253 91 586 Hop . | . . . . . . . . . Pick Up 57 | 8 2 2 29 10 . 2 . 4 Fast Attach 8 | 7 . . 1 . . . . . Attach 21 | . . . 5 1 . 3 . 12 Detach 4 | . . . 4 . . . . . Swap 8 | . . 2 4 2 . . . . Drop 28 | . 2 2 13 11 . . . . Fire 114 | 13 . 9 11 5 40 15 . 21 Melee 23 | . . . . . . . . 23 Ram . | . . . . . . . . . Kick . | . . . . . . . . . Crush . | . . . . . . . . . Escape Stasis . | . . . . . . . . . Rewire . | . . . . . . . . . Trap . | . . . . . . . . . Miscellaneous . | . . . . . . . . . Route ------- -11/Scrapyard -10/Materials -10/Subcaves -8/Materials -7/Factory -7/Lower Caves -7/Lower Caves -7/Data Miner -6/Proximity Caves (discovered 1 exit: *Fac) History --------- Turn | Location | Event 9 | -11/Scrapyard | Discovered new exit (range 15) 121 | -11/Scrapyard | Entered Materials 272 | -10/Materials | Discovered new exit (range 7) 312 | -10/Materials | Build established: Mutant 436 | -10/Materials | Entered Subcaves 437 | -10/Subcaves | Approached by a straggling Scientist 466 | -10/Subcaves | Learned 2 Materials zone layouts 510 | -10/Subcaves | Learned Materials garrison access intel 564 | -10/Subcaves | Visited triangular shrine 571 | -10/Subcaves | Found Prototype Device 572 | -10/Subcaves | Identified V3-11A's Pendant 579 | -10/Subcaves | Befriended Subdweller 693 | -10/Subcaves | Discovered new exit (range 5) 709 | -10/Subcaves | Shifting Twisted Machinery released Mak. Light Armor Plating 846 | -10/Subcaves | Entered Materials 846 | -8/Materials | Evolved 4 slots: Propulsion x2, Utility x2 847 | -8/Materials | Identified exit to Factory 848 | -8/Materials | Loaded intel: 1 garrison access location 1780 | -8/Materials | Entered Factory 1780 | -7/Factory | Evolved 2 slots: Propulsion x2 1893 | -7/Factory | Found Prototype Launcher 1894 | -7/Factory | Identified Rocket Array 2132 | -7/Factory | Central database locked down 2339 | -7/Factory | Discovered new exit (range 15) 2361 | -7/Factory | Entered Lower Caves 2362 | -7/Lower Caves | Encountered a Warlord checkpoint 2877 | -7/Lower Caves | Discovered new exit (range 3) 2970 | -7/Lower Caves | Entered another Lower Caves area 2972 | -7/Lower Caves | Attracted the attention of an 0b10 checkpoint 3073 | -7/Lower Caves | Encountered a Warlord checkpoint 3199 | -7/Lower Caves | Spotted B-75 Beast 3219 | -7/Lower Caves | Destroyed B-75 Beast 3251 | -7/Lower Caves | Discovered new exit (range 11) 3272 | -7/Lower Caves | Learned 4 Factory zone layouts 3306 | -7/Lower Caves | Entered Data Miner 3306 | -7/Data Miner | Discovered new exit (range 6) 3328 | -7/Data Miner | Met Data Miner 3369 | -7/Data Miner | Learned location of Section 7 (-2) 3369 | -7/Data Miner | Acquired the access code to Warlord's prototype stash 3379 | -7/Data Miner | Received God Mode back door access code from Data Miner 3411 | -7/Data Miner | Entered Proximity Caves 3737 | -6/Proximity Caves | Attracted the attention of an 0b10 outpost 3787 | -6/Proximity Caves | Lost 3 parts (2n1w) 3917 | -6/Proximity Caves | Lost 3 parts (1p1n1u) 3919 | -6/Proximity Caves | Learned Factory terminal intel 4202 | -6/Proximity Caves | Identified exit to Factory 4444 | -6/Proximity Caves | Core integrity fell below 50% 4446 | -6/Proximity Caves | Spotted B-75 Beast 4468 | -6/Proximity Caves | Escorted by Enhanced Grunt 4468 | -6/Proximity Caves | Core integrity fell below 20% 4471 | -6/Proximity Caves | Destroyed by B-75 Beast with Magnetic Acceleration Cannon Last Messages --------------- 04443_ Particle Cannon destroyed. 04446_ Com. Matter Pod destroyed. 04452_ Arm. Huge Wheel destroyed. 04454_ System corrupted: Substantial component data lost. 04455_ Carbon-fiber Leg+ destroyed. 04459_ Slug penetrates Wall. 04459_ Carbon-fiber Leg+ destroyed. 04460_ Penetrated by Slug. 04460_ Carbon-fiber Leg+ destroyed. 04462_ Slug penetrates Wall. 04462_ Penetrated by Slug. 04464_ Carbon-fiber Leg+ destroyed. 04464_ Penetrated by Slug. 04468_ Enhanced Grunt: "Protecting LRC-V3." 04468_ Penetrated by Slug. 04468_ Slug penetrates B-75 Beast. 04469_ Chain reaction triggered in Rnf. Deuterium Engine. 04470_ P-60 Hacker fails to hack Enhanced Grunt. 04470_ Penetrated by Slug. 04471_ Hyb. Deuterium Engine destroyed. Map ----- +----------------------------------------------------+ | ???## #??# ##???????????### ### ## # | | ##### #??# ###??????????????## # # # # | | # #??###?????????????????## # ## # ## | | # #####???????????????????????####### ### ### | | # #?????????????????????????????????## ### #?? | | # #????####?????????????????????????## # ## #?? | | # ##### #????????????????????????## # ### #?# | | #!# #????????????????????????# "## ### | | #%! #?????????????????????????# # "%" % | | #/ ####?????????????????????????## " # | | # ##?????????????????????????????# # ### | | #??????????????????????????????# ## #?? | | #?????????????????????????????# ###### #?? | | #????????????????????????????# ????### ##? | | # #????????????????????????????## #???## #? | | # # #????????????????????????????? ????# ## #? | | #????????????????????????????? #??### # #? | | #?????????????????????????????????# #? | | ######?????????????????????????????????# # # ##? | | ??????????????????????????####???????????#?## #? | | ??????????????????#???????# ###????????????## #? | | ???????????????# ## ?????# ###???????????# #? | | ???????????# ## ????# ;#??????????## #? | | ???????????# #### % ##???????###%" #? | | ???????????# ;# % ##???#### " #? | | ??????????g @ ;#??## #? | | ?????????? % ##### #? | | ?????????? p BB %h ##? | | ??????????? BB h #### #?? | | ??????????? ## ##??## #? | | ???????????? ### ####????# # | | ???????????? ##?# ??????# ## | | ???????????? #??# ????? ##? | | ????????????? #??## ### ????##?? | | ?????????????# ????### ##??? ??????? | | ??????????????### ## ??????#####????? ??????? | | ????????????????# ?## ???????????????????????? | | ???????????????? ??##???????????????????????? | | ?????????????????? ????????????????????????????? | | ?????????????????????????????????????????????????? | | ?????????????????????????????????????????????????? | | ?????????????????????????????????????????????????? | | ?????????????????????????????????????????????????? | | ?????????????????????????????????????????????????? | | ?????????????????????????????????????????????????? | | ?????????????????????????????????????????????????? | | ?????????????????????????????????????????????????? | | ?????????????????????????????????????????????????? | | ?????????????????????????????????????????????????? | | ?????????????????????????????????????????????????? | +----------------------------------------------------+ Best States ------------- Heat Dissipation 53 Energy Generation 14 Energy Capacity 800 Matter Stores 450 Matter Capacity 450 Sight Range 16 Terrain Scan Density 10 Armor Coverage 250 Resistance: KI 20 Evasion (%) 55 Recoil Reduction 2 Item Schematics ----------------- Combat Drone Bay | -7/Data Miner | Free Lgt. Regenerative Plating | -7/Data Miner | Free Cld. Aerolev Unit | -7/Data Miner | Free Exp. Targeting Computer | -7/Data Miner | Free Cld. Plasma Cannon | -7/Data Miner | Free Field Propulsion Drive | -7/Data Miner | Free Imp. Kinecellerator | -7/Data Miner | Free KE Penetrator | -7/Data Miner | Free Robot Schematics ------------------ G-47 Trooper | -7/Data Miner | Free G-50 Soldier | -7/Data Miner | Free M-28 Smith | -7/Data Miner | Free L-41 Fighter | -7/Data Miner | Free H-66 Slayer | -7/Data Miner | Free Y-64 Sentinel | -7/Data Miner | Free Fabricated ------------ Nothing Repaired ---------- Nothing Studied --------- Carbon-fiber Leg | -8/Materials | Hacked Assault Cannon | -8/Materials | Hacked Gauss Cannon | -7/Factory | Hacked Alien Tech Used ----------------- None Achievements -------------- SUBSUB The Oracle Challenges ------------ None Game ------ Seed SalvageSwarmNanosword Manual? 0 Play Time 01:01:29 Cumulative 75.8 hours Start 2026.04.15 @ 17:44:38 End 2026.04.15 @ 19:01:31 Sessions 1 Manual Loads 0 Difficulty Rogue Special Mode None Game No. 96 Rogue 96 Adventurer 0 Explorer 0 Win Type - Total 0 Types 0/0/0/0/0/0/0/0/0/0 Lore% 32 Gallery% 25 Achievement% 19 Wizard Run 0 Options --------- Layout 0 ASCII 0 Keyboard 0 Movement Mouse Keybinds 0 Fullscreen 1 Font 18/SmallcapsGlow Map View 76x50 Zoom Use 0% Tactical HUD 1 Map Filters NONE Filters LOW_CONTRAST(13,24,33) Steam 1 RUN: 18cf061a-6f66-4c2d-9f57-260df092e031